[Event "Late-Titled-Tuesday-Blitz-November-28-2023"]
[Site "Chess.com"]
[Date "2023.11.28"]
[Round "7"]
[White "ameetghasi100"]
[Black "GoltsevDmitry2000"]
[Result "1/2-1/2"]
[WhiteElo "2826"]
[BlackElo "2682"]
[TimeControl "180+1"]
[EndTime "15:15:49 PST"]
[Termination "Game drawn by stalemate"]

1. g3 {[%clk 0:03:00.9]} 1... h5 {[%clk 0:02:55.7]} 2. Bg2 {[%clk 0:03:01.8]}
2... h4 {[%clk 0:02:56.3]} 3. g4 {[%clk 0:03:01.8]} 3... d5 {[%clk 0:02:56.4]}
4. h3 {[%clk 0:03:02.7]} 4... c6 {[%clk 0:02:56.8]} 5. c4 {[%clk 0:02:59.1]}
5... dxc4 {[%clk 0:02:55.8]} 6. Na3 {[%clk 0:02:59.2]} 6... Nf6 {[%clk
0:02:54.7]} 7. Nxc4 {[%clk 0:02:58.6]} 7... Nbd7 {[%clk 0:02:54.4]} 8. b3 {[%clk
0:02:55.4]} 8... Nb6 {[%clk 0:02:54.4]} 9. Bb2 {[%clk 0:02:55.4]} 9... Nxc4
{[%clk 0:02:51.8]} 10. bxc4 {[%clk 0:02:56.3]} 10... Be6 {[%clk 0:02:45]} 11.
Qc2 {[%clk 0:02:52.7]} 11... Qa5 {[%clk 0:02:41.8]} 12. Nf3 {[%clk 0:02:49]}
12... Rd8 {[%clk 0:02:32.3]} 13. Bc3 {[%clk 0:02:45.9]} 13... Qc5 {[%clk
0:02:07.5]} 14. d3 {[%clk 0:02:24.1]} 14... Bc8 {[%clk 0:01:16.2]} 15. Qb2
{[%clk 0:02:17.3]} 15... e6 {[%clk 0:00:56.4]} 16. Ne5 {[%clk 0:01:30.4]} 16...
Nd7 {[%clk 0:00:42]} 17. Nxd7 {[%clk 0:01:28]} 17... Rxd7 {[%clk 0:00:40.3]} 18.
Bxg7 {[%clk 0:01:24.3]} 18... Bxg7 {[%clk 0:00:36.3]} 19. Qxg7 {[%clk
0:01:25.2]} 19... Qa5+ {[%clk 0:00:35.7]} 20. Kf1 {[%clk 0:01:22.9]} 20... Rf8
{[%clk 0:00:36.3]} 21. Qf6 {[%clk 0:01:12.3]} 21... Qd2 {[%clk 0:00:28.1]} 22.
Bf3 {[%clk 0:01:09]} 22... Re7 {[%clk 0:00:15.9]} 23. Kg2 {[%clk 0:01:00.9]}
23... e5 {[%clk 0:00:16.1]} 24. Rab1 {[%clk 0:00:55.7]} 24... Qxa2 {[%clk
0:00:13.1]} 25. Bxc6+ {[%clk 0:00:42.6]} 25... bxc6 {[%clk 0:00:09.3]} 26. Qxc6+
{[%clk 0:00:43.5]} 26... Kd8 {[%clk 0:00:08.2]} 27. Qd6+ {[%clk 0:00:28.8]}
27... Ke8 {[%clk 0:00:08.5]} 28. Rb8 {[%clk 0:00:28.4]} 28... f5 {[%clk
0:00:05.2]} 29. Rxc8+ {[%clk 0:00:16.9]} 29... Kf7 {[%clk 0:00:05.5]} 30. Rxf8+
{[%clk 0:00:16.3]} 30... Kxf8 {[%clk 0:00:06.4]} 31. Qf6+ {[%clk 0:00:16.8]}
31... Rf7 {[%clk 0:00:06.2]} 32. Qd8+ {[%clk 0:00:16.2]} 32... Kg7 {[%clk
0:00:06.3]} 33. Re1 {[%clk 0:00:08.9]} 33... fxg4 {[%clk 0:00:05.7]} 34. hxg4
{[%clk 0:00:07.7]} 34... Qd2 {[%clk 0:00:06.3]} 35. Kf1 {[%clk 0:00:04]} 35...
Qf4 {[%clk 0:00:06.3]} 36. Qxh4 {[%clk 0:00:04.7]} 36... e4 {[%clk 0:00:05.6]}
37. e3 {[%clk 0:00:04.4]} 37... Qf3 {[%clk 0:00:05.3]} 38. dxe4 {[%clk
0:00:03.4]} 38... Qxe4 {[%clk 0:00:05.6]} 39. Qg5+ {[%clk 0:00:03.2]} 39... Kf8
{[%clk 0:00:05.5]} 40. Qd8+ {[%clk 0:00:02.4]} 40... Kg7 {[%clk 0:00:05.4]} 41.
Qg5+ {[%clk 0:00:03.3]} 41... Kf8 {[%clk 0:00:05.9]} 42. Kg1 {[%clk 0:00:03.9]}
42... Rh7 {[%clk 0:00:06]} 43. Qf5+ {[%clk 0:00:03.8]} 43... Qxf5 {[%clk
0:00:05.5]} 44. gxf5 {[%clk 0:00:04.7]} 44... Kf7 {[%clk 0:00:05.5]} 45. e4
{[%clk 0:00:05.1]} 45... Kf6 {[%clk 0:00:06.1]} 46. f4 {[%clk 0:00:05.4]} 46...
Rc7 {[%clk 0:00:06.4]} 47. Rc1 {[%clk 0:00:05.3]} 47... Rd7 {[%clk 0:00:05.9]}
48. Kf2 {[%clk 0:00:05.1]} 48... a5 {[%clk 0:00:06.5]} 49. Ke3 {[%clk
0:00:05.7]} 49... a4 {[%clk 0:00:06.7]} 50. c5 {[%clk 0:00:06.3]} 50... a3
{[%clk 0:00:06.7]} 51. c6 {[%clk 0:00:06.8]} 51... Rc7 {[%clk 0:00:07]} 52. Ra1
{[%clk 0:00:07.2]} 52... Rxc6 {[%clk 0:00:07.3]} 53. Rxa3 {[%clk 0:00:07.6]}
53... Rc7 {[%clk 0:00:07.5]} 54. Rd3 {[%clk 0:00:08.2]} 54... Rh7 {[%clk
0:00:07.6]} 55. Rd6+ {[%clk 0:00:08.4]} 55... Kf7 {[%clk 0:00:08.3]} 56. Rd7+
{[%clk 0:00:08.4]} 56... Kf6 {[%clk 0:00:09.1]} 57. Rxh7 {[%clk 0:00:09.3]}
1/2-1/2

[Event "Late-Titled-Tuesday-Blitz-November-28-2023"]
[Site "Chess.com"]
[Date "2023.11.28"]
[Round "7"]
[White "Abduzhaparov"]
[Black "TanitoluwaAps116"]
[Result "1-0"]
[WhiteElo "2446"]
[BlackElo "2684"]
[TimeControl "180+1"]
[EndTime "15:15:56 PST"]
[Termination "Abduzhaparov won by checkmate"]

1. Nf3 {[%clk 0:03:00.9]} 1... Nf6 {[%clk 0:02:58.8]} 2. c4 {[%clk 0:03:01.8]}
2... e6 {[%clk 0:02:57.2]} 3. g3 {[%clk 0:03:01.9]} 3... b6 {[%clk 0:02:48.5]}
4. Bg2 {[%clk 0:03:02.8]} 4... Bb7 {[%clk 0:02:45.4]} 5. O-O {[%clk 0:03:03.7]}
5... Be7 {[%clk 0:02:44.7]} 6. Nc3 {[%clk 0:03:03.8]} 6... O-O {[%clk
0:02:44.9]} 7. Re1 {[%clk 0:03:04.1]} 7... d5 {[%clk 0:02:44.3]} 8. cxd5 {[%clk
0:03:03.6]} 8... exd5 {[%clk 0:02:44.9]} 9. d4 {[%clk 0:03:04]} 9... c5 {[%clk
0:02:45.6]} 10. Bf4 {[%clk 0:03:04]} 10... Nc6 {[%clk 0:02:45.3]} 11. e3 {[%clk
0:03:02.9]} 11... h6 {[%clk 0:02:45.4]} 12. h4 {[%clk 0:03:02.9]} 12... Re8
{[%clk 0:02:39.6]} 13. Ne5 {[%clk 0:03:02.8]} 13... Bf8 {[%clk 0:02:16.1]} 14.
Qa4 {[%clk 0:02:59.4]} 14... Qc8 {[%clk 0:01:59]} 15. Rad1 {[%clk 0:02:49.5]}
15... Ne7 {[%clk 0:01:28.9]} 16. Nb5 {[%clk 0:02:31.4]} 16... Rd8 {[%clk
0:01:16.2]} 17. dxc5 {[%clk 0:02:21.2]} 17... bxc5 {[%clk 0:01:17.1]} 18. Qb3
{[%clk 0:02:05.6]} 18... Nc6 {[%clk 0:00:56.7]} 19. Nc3 {[%clk 0:01:56.1]} 19...
c4 {[%clk 0:00:34.6]} 20. Qa4 {[%clk 0:01:49.5]} 20... Qe6 {[%clk 0:00:31.4]}
21. Nxc6 {[%clk 0:01:29.2]} 21... Bxc6 {[%clk 0:00:32.3]} 22. Qa5 {[%clk
0:01:29.6]} 22... Be7 {[%clk 0:00:24.2]} 23. Ne2 {[%clk 0:01:24.3]} 23... Bb7
{[%clk 0:00:19.1]} 24. Nd4 {[%clk 0:01:23.8]} 24... Qb6 {[%clk 0:00:19.4]} 25.
Qxb6 {[%clk 0:01:10.6]} 25... axb6 {[%clk 0:00:20.3]} 26. a3 {[%clk 0:01:11.3]}
26... Ne4 {[%clk 0:00:20]} 27. Bc7 {[%clk 0:01:08.9]} 27... Rd7 {[%clk
0:00:17.6]} 28. Nb5 {[%clk 0:00:56.8]} 28... Bc6 {[%clk 0:00:08.4]} 29. Bxe4
{[%clk 0:00:56.1]} 29... dxe4 {[%clk 0:00:06.6]} 30. Rxd7 {[%clk 0:00:57]} 30...
Bxd7 {[%clk 0:00:07]} 31. Nc3 {[%clk 0:00:53.7]} 31... f5 {[%clk 0:00:04.6]} 32.
Rd1 {[%clk 0:00:51.2]} 32... Be6 {[%clk 0:00:04]} 33. Nd5 {[%clk 0:00:46.8]}
33... Bxd5 {[%clk 0:00:03.6]} 34. Rxd5 {[%clk 0:00:47.7]} 34... g6 {[%clk
0:00:03]} 35. Rb5 {[%clk 0:00:43.2]} 35... Rc8 {[%clk 0:00:02.1]} 36. Be5 {[%clk
0:00:42.5]} 36... Kf7 {[%clk 0:00:02.2]} 37. Rxb6 {[%clk 0:00:40.1]} 37... Bc5
{[%clk 0:00:02.3]} 38. Rb7+ {[%clk 0:00:39.4]} 38... Ke6 {[%clk 0:00:02.8]} 39.
Bc3 {[%clk 0:00:39.3]} 39... Rd8 {[%clk 0:00:03.1]} 40. h5 {[%clk 0:00:36.7]}
40... gxh5 {[%clk 0:00:03.2]} 41. Rh7 {[%clk 0:00:36.3]} 41... h4 {[%clk
0:00:03.6]} 42. Rxh6+ {[%clk 0:00:36]} 42... Kd5 {[%clk 0:00:03.8]} 43. Rxh4
{[%clk 0:00:35.4]} 43... Rb8 {[%clk 0:00:04.2]} 44. Kg2 {[%clk 0:00:35.2]} 44...
Rb3 {[%clk 0:00:04.3]} 45. Rh5 {[%clk 0:00:35]} 45... Bxa3 {[%clk 0:00:03.4]}
46. Rxf5+ {[%clk 0:00:31.3]} 46... Kd6 {[%clk 0:00:03.3]} 47. Rf6+ {[%clk
0:00:18.4]} 47... Ke7 {[%clk 0:00:02.5]} 48. Rc6 {[%clk 0:00:17.1]} 48... Bxb2
{[%clk 0:00:02.1]} 49. Bxb2 {[%clk 0:00:18]} 49... Rxb2 {[%clk 0:00:01.7]} 50.
Rxc4 {[%clk 0:00:18.5]} 50... Kf6 {[%clk 0:00:01.9]} 51. Rxe4 {[%clk 0:00:18.4]}
51... Kf5 {[%clk 0:00:02.8]} 52. Rf4+ {[%clk 0:00:18.3]} 52... Kg5 {[%clk
0:00:03.7]} 53. e4 {[%clk 0:00:17.9]} 53... Re2 {[%clk 0:00:03.8]} 54. Kf3
{[%clk 0:00:16.3]} 54... Re1 {[%clk 0:00:04.3]} 55. Rf5+ {[%clk 0:00:16]} 55...
Kg6 {[%clk 0:00:04.7]} 56. Kf4 {[%clk 0:00:16.3]} 56... Re2 {[%clk 0:00:04.1]}
57. f3 {[%clk 0:00:16.6]} 57... Re1 {[%clk 0:00:04.6]} 58. Ra5 {[%clk
0:00:16.6]} 58... Rd1 {[%clk 0:00:05.4]} 59. Ra6+ {[%clk 0:00:16.8]} 59... Kg7
{[%clk 0:00:04.8]} 60. g4 {[%clk 0:00:16.8]} 60... Re1 {[%clk 0:00:05.1]} 61.
Kf5 {[%clk 0:00:16.7]} 61... Rf1 {[%clk 0:00:05.8]} 62. f4 {[%clk 0:00:16.9]}
62... Re1 {[%clk 0:00:06.4]} 63. e5 {[%clk 0:00:17]} 63... Kh7 {[%clk
0:00:07.3]} 64. Ra7+ {[%clk 0:00:15.6]} 64... Kh8 {[%clk 0:00:07.1]} 65. Kg6
{[%clk 0:00:14.4]} 65... Rg1 {[%clk 0:00:07.2]} 66. Ra8# {[%clk 0:00:13.9]} 1-0

[Event "Late-Titled-Tuesday-Blitz-November-28-2023"]
[Site "Chess.com"]
[Date "2023.11.28"]
[Round "7"]
[White "Schwindle"]
[Black "Charodej1"]
[Result "1-0"]
[WhiteElo "2374"]
[BlackElo "2208"]
[TimeControl "180+1"]
[EndTime "15:15:57 PST"]
[Termination "Schwindle won by resignation"]

1. e4 {[%clk 0:02:55]} 1... c6 {[%clk 0:02:59.4]} 2. d4 {[%clk 0:02:53.5]} 2...
d5 {[%clk 0:02:59.3]} 3. Nc3 {[%clk 0:02:54.4]} 3... dxe4 {[%clk 0:02:59.6]} 4.
Nxe4 {[%clk 0:02:55.2]} 4... Nd7 {[%clk 0:02:59.8]} 5. Ng5 {[%clk 0:02:50.4]}
5... Ngf6 {[%clk 0:02:59.1]} 6. N1f3 {[%clk 0:02:50.2]} 6... e6 {[%clk
0:02:57.3]} 7. Qe2 {[%clk 0:02:43.7]} 7... Bd6 {[%clk 0:02:56.8]} 8. Nxf7 {[%clk
0:02:42]} 8... Kxf7 {[%clk 0:02:43.2]} 9. Ng5+ {[%clk 0:02:41.6]} 9... Ke8
{[%clk 0:02:42.1]} 10. Nxe6 {[%clk 0:02:41.8]} 10... Qe7 {[%clk 0:02:42.1]} 11.
Nxg7+ {[%clk 0:02:41.9]} 11... Kf7 {[%clk 0:02:30.7]} 12. Nf5 {[%clk 0:02:41.5]}
12... Qxe2+ {[%clk 0:02:23.6]} 13. Bxe2 {[%clk 0:02:42.4]} 13... Bf8 {[%clk
0:02:20.3]} 14. O-O {[%clk 0:02:38.7]} 14... Nb6 {[%clk 0:02:16.2]} 15. Ne3
{[%clk 0:02:28.8]} 15... Bg7 {[%clk 0:02:13.5]} 16. a4 {[%clk 0:02:26.6]} 16...
a5 {[%clk 0:02:05.1]} 17. c3 {[%clk 0:02:16.7]} 17... Be6 {[%clk 0:02:04.3]} 18.
Bd2 {[%clk 0:01:58.8]} 18... Rhg8 {[%clk 0:01:59.6]} 19. Rfe1 {[%clk 0:01:57.8]}
19... Bf8 {[%clk 0:01:50.5]} 20. Kf1 {[%clk 0:01:51.5]} 20... Bd6 {[%clk
0:01:48.1]} 21. h3 {[%clk 0:01:50.8]} 21... Rg7 {[%clk 0:01:44.2]} 22. g4 {[%clk
0:01:44.6]} 22... Ne4 {[%clk 0:01:33.1]} 23. Bc1 {[%clk 0:01:42.9]} 23... Rf8
{[%clk 0:01:24.7]} 24. Bd3 {[%clk 0:01:36.1]} 24... Ng5 {[%clk 0:01:23.1]} 25.
Kg2 {[%clk 0:01:30.9]} 25... Kg8 {[%clk 0:00:58.8]} 26. c4 {[%clk 0:01:21.8]}
26... Bb4 {[%clk 0:00:57.7]} 27. Rd1 {[%clk 0:01:19.3]} 27... h5 {[%clk
0:00:45.6]} 28. Nf5 {[%clk 0:01:14.6]} 28... Bxf5 {[%clk 0:00:45.3]} 29. Bxf5
{[%clk 0:01:13.9]} 29... hxg4 {[%clk 0:00:44.9]} 30. hxg4 {[%clk 0:01:12.9]}
30... Nc8 {[%clk 0:00:40]} 31. Be3 {[%clk 0:01:02]} 31... Nd6 {[%clk 0:00:39.9]}
32. Bd3 {[%clk 0:00:55]} 32... Ne6 {[%clk 0:00:39.8]} 33. c5 {[%clk 0:00:50.4]}
33... Ne8 {[%clk 0:00:37.2]} 34. f3 {[%clk 0:00:47.3]} 34... N8c7 {[%clk
0:00:35.3]} 35. Bc4 {[%clk 0:00:45.8]} 35... Rd8 {[%clk 0:00:27.6]} 36. g5
{[%clk 0:00:43.4]} 36... Nd5 {[%clk 0:00:27.5]} 37. Bxd5 {[%clk 0:00:41.9]}
37... Rxd5 {[%clk 0:00:27.6]} 38. f4 {[%clk 0:00:42.2]} 38... Rgd7 {[%clk
0:00:26.4]} 39. Kf3 {[%clk 0:00:30.4]} 39... Nxd4+ {[%clk 0:00:23.4]} 40. Bxd4
{[%clk 0:00:30.1]} 40... Rxd4 {[%clk 0:00:23.9]} 41. Rxd4 {[%clk 0:00:27.3]}
41... Rxd4 {[%clk 0:00:24.8]} 42. Rh1 {[%clk 0:00:25.1]} 42... Bxc5 {[%clk
0:00:24.1]} 43. f5 {[%clk 0:00:23.8]} 43... Rd3+ {[%clk 0:00:21.4]} 44. Kg4
{[%clk 0:00:23.4]} 44... Rd4+ {[%clk 0:00:20.7]} 45. Kh5 {[%clk 0:00:22.6]}
45... Rd7 {[%clk 0:00:14]} 46. Re1 {[%clk 0:00:19.5]} 46... Rh7+ {[%clk
0:00:10.8]} 47. Kg4 {[%clk 0:00:16.5]} 47... Re7 {[%clk 0:00:10.9]} 48. Rd1
{[%clk 0:00:16.2]} 48... Re4+ {[%clk 0:00:10.2]} 49. Kh5 {[%clk 0:00:16.5]}
49... Rd4 {[%clk 0:00:10.6]} 50. Re1 {[%clk 0:00:15.5]} 50... Rd8 {[%clk
0:00:09.2]} 51. Kg6 {[%clk 0:00:13.5]} 51... Bf8 {[%clk 0:00:07]} 52. f6 {[%clk
0:00:13.4]} 52... Rd6 {[%clk 0:00:07.3]} 53. Re8 {[%clk 0:00:10.7]} 53... b5
{[%clk 0:00:04.4]} 54. b3 {[%clk 0:00:10.2]} 54... bxa4 {[%clk 0:00:04.6]} 55.
bxa4 {[%clk 0:00:11.1]} 55... c5 {[%clk 0:00:04.8]} 56. Rc8 {[%clk 0:00:11.4]}
56... Rb6 {[%clk 0:00:03.6]} 57. Kf5 {[%clk 0:00:08.4]} 57... Kf7 {[%clk
0:00:03.7]} 58. g6+ {[%clk 0:00:08]} 58... Kg8 {[%clk 0:00:04.3]} 59. g7 {[%clk
0:00:06.7]} 1-0

[Event "Late-Titled-Tuesday-Blitz-November-28-2023"]
[Site "Chess.com"]
[Date "2023.11.28"]
[Round "7"]
[White "szefru"]
[Black "melissa_guez"]
[Result "1-0"]
[WhiteElo "2328"]
[BlackElo "2238"]
[TimeControl "180+1"]
[EndTime "15:16:00 PST"]
[Termination "szefru won on time"]

1. e4 {[%clk 0:03:00.9]} 1... c5 {[%clk 0:02:58.2]} 2. Nf3 {[%clk 0:02:59.2]}
2... e6 {[%clk 0:02:58.2]} 3. b3 {[%clk 0:02:59.2]} 3... d5 {[%clk 0:02:55.1]}
4. exd5 {[%clk 0:02:59]} 4... exd5 {[%clk 0:02:56]} 5. Bb5+ {[%clk 0:02:59.3]}
5... Nc6 {[%clk 0:02:55]} 6. O-O {[%clk 0:02:58.9]} 6... Bd6 {[%clk 0:02:50.4]}
7. Re1+ {[%clk 0:02:58.8]} 7... Ne7 {[%clk 0:02:50.8]} 8. d4 {[%clk 0:02:37.1]}
8... O-O {[%clk 0:02:49]} 9. Bg5 {[%clk 0:02:34.8]} 9... f6 {[%clk 0:02:31.5]}
10. Be3 {[%clk 0:02:26.2]} 10... cxd4 {[%clk 0:02:27.5]} 11. Nxd4 {[%clk
0:02:27.1]} 11... Nxd4 {[%clk 0:02:26.8]} 12. Bxd4 {[%clk 0:02:27.5]} 12... a6
{[%clk 0:02:26]} 13. Bd3 {[%clk 0:02:26.9]} 13... b5 {[%clk 0:02:20.9]} 14. Nd2
{[%clk 0:02:24.7]} 14... Nf5 {[%clk 0:02:18.1]} 15. Bb2 {[%clk 0:02:23.9]} 15...
Re8 {[%clk 0:02:09.9]} 16. Qf3 {[%clk 0:02:15.6]} 16... Ne7 {[%clk 0:02:01.4]}
17. Qh5 {[%clk 0:01:53.4]} 17... g6 {[%clk 0:02:00.1]} 18. Qf3 {[%clk
0:01:46.1]} 18... f5 {[%clk 0:01:47.2]} 19. Rxe7 {[%clk 0:01:24.6]} 19... Qxe7
{[%clk 0:01:39]} 20. Qxd5+ {[%clk 0:01:24.8]} 20... Be6 {[%clk 0:01:38.7]} 21.
Qd4 {[%clk 0:01:25]} 21... Red8 {[%clk 0:01:01.8]} 22. Qh8+ {[%clk 0:01:16.8]}
22... Kf7 {[%clk 0:01:00.8]} 23. Qxh7+ {[%clk 0:01:17.2]} 23... Ke8 {[%clk
0:01:00.1]} 24. Qxg6+ {[%clk 0:01:17.1]} 24... Kd7 {[%clk 0:01:00.3]} 25. Bf6
{[%clk 0:00:53.3]} 25... Qe8 {[%clk 0:01:00.3]} 26. Qg7+ {[%clk 0:00:42.5]}
26... Be7 {[%clk 0:01:00.1]} 27. Nf3 {[%clk 0:00:40.7]} 27... Kd6 {[%clk
0:00:51]} 28. Be5+ {[%clk 0:00:36.1]} 28... Kc5 {[%clk 0:00:50.5]} 29. Bc3
{[%clk 0:00:32.7]} 29... Bd6 {[%clk 0:00:28.6]} 30. Qd4+ {[%clk 0:00:31]} 30...
Kc6 {[%clk 0:00:28.4]} 31. Ne5+ {[%clk 0:00:29.2]} 31... Bxe5 {[%clk 0:00:28]}
32. Qxe5 {[%clk 0:00:29.5]} 32... Rd5 {[%clk 0:00:26.2]} 33. Qf4 {[%clk
0:00:23.3]} 33... Qd7 {[%clk 0:00:24.6]} 34. Re1 {[%clk 0:00:22.9]} 34... Rg8
{[%clk 0:00:21.5]} 35. g3 {[%clk 0:00:17.8]} 35... Re8 {[%clk 0:00:17.7]} 36. a4
{[%clk 0:00:17.7]} 36... bxa4 {[%clk 0:00:15.6]} 37. Qxa4+ {[%clk 0:00:18.6]}
37... Kb7 {[%clk 0:00:14.7]} 38. Qxa6+ {[%clk 0:00:14.4]} 38... Kb8 {[%clk
0:00:15]} 39. Qb6+ {[%clk 0:00:14.4]} 39... Qb7 {[%clk 0:00:13.8]} 40. Rxe6
{[%clk 0:00:14.1]} 40... Qxb6 {[%clk 0:00:10.1]} 41. Rxb6+ {[%clk 0:00:14.1]}
41... Kc7 {[%clk 0:00:10.2]} 42. Rf6 {[%clk 0:00:13.4]} 42... f4 {[%clk
0:00:09.4]} 43. Rxf4 {[%clk 0:00:13.3]} 43... Red8 {[%clk 0:00:08.3]} 44. Rc4+
{[%clk 0:00:11.8]} 44... Kb8 {[%clk 0:00:08.1]} 45. Kg2 {[%clk 0:00:11.2]} 45...
Re8 {[%clk 0:00:08.2]} 46. Be4 {[%clk 0:00:11]} 46... Rd1 {[%clk 0:00:07.9]} 47.
f4 {[%clk 0:00:10.3]} 47... Rc1 {[%clk 0:00:07]} 48. Be5+ {[%clk 0:00:10.9]}
48... Ka7 {[%clk 0:00:05.6]} 49. Rc7+ {[%clk 0:00:10.9]} 49... Ka6 {[%clk
0:00:05.4]} 50. Bd3+ {[%clk 0:00:11.5]} 50... Kb6 {[%clk 0:00:05.1]} 51. Rc3
{[%clk 0:00:10.5]} 51... Rd1 {[%clk 0:00:02.1]} 52. b4 {[%clk 0:00:10.8]} 52...
Rd2+ {[%clk 0:00:02.2]} 53. Kf3 {[%clk 0:00:10.9]} 53... Rd1 {[%clk 0:00:02.4]}
54. h4 {[%clk 0:00:10.7]} 54... Rd2 {[%clk 0:00:02.8]} 55. Bd4+ {[%clk 0:00:10]}
55... Kb7 {[%clk 0:00:02.6]} 56. Be4+ {[%clk 0:00:10.4]} 56... Kb8 {[%clk
0:00:02.9]} 57. Be5+ {[%clk 0:00:10.4]} 57... Ka7 {[%clk 0:00:03.4]} 58. Rc6
{[%clk 0:00:10.8]} 58... Re7 {[%clk 0:00:02.2]} 59. b5 {[%clk 0:00:11.3]} 1-0

[Event "Late-Titled-Tuesday-Blitz-November-28-2023"]
[Site "Chess.com"]
[Date "2023.11.28"]
[Round "7"]
[White "Jaka_Brilej"]
[Black "MKlose11"]
[Result "0-1"]
[WhiteElo "2461"]
[BlackElo "2601"]
[TimeControl "180+1"]
[EndTime "15:16:03 PST"]
[Termination "MKlose11 won by resignation"]

1. d4 {[%clk 0:02:45.9]} 1... Nf6 {[%clk 0:02:57.9]} 2. Nc3 {[%clk 0:02:46]}
2... c5 {[%clk 0:02:58.8]} 3. d5 {[%clk 0:02:44.7]} 3... d6 {[%clk 0:02:59.4]}
4. e4 {[%clk 0:02:44.4]} 4... g6 {[%clk 0:02:59.8]} 5. Nf3 {[%clk 0:02:44]} 5...
Bg7 {[%clk 0:03:00.1]} 6. Bb5+ {[%clk 0:02:42.3]} 6... Bd7 {[%clk 0:02:59.9]} 7.
a4 {[%clk 0:02:42.9]} 7... O-O {[%clk 0:02:59.5]} 8. O-O {[%clk 0:02:42.5]} 8...
Na6 {[%clk 0:02:58.5]} 9. h3 {[%clk 0:02:31.3]} 9... Nc7 {[%clk 0:02:58.3]} 10.
Bc4 {[%clk 0:02:14.9]} 10... Rb8 {[%clk 0:02:57.1]} 11. Re1 {[%clk 0:02:10.1]}
11... b6 {[%clk 0:02:51.9]} 12. e5 {[%clk 0:02:08.2]} 12... dxe5 {[%clk
0:02:26.3]} 13. Nxe5 {[%clk 0:02:09.1]} 13... a6 {[%clk 0:02:27.2]} 14. Bf4
{[%clk 0:01:56.7]} 14... b5 {[%clk 0:02:26]} 15. axb5 {[%clk 0:01:55.1]} 15...
axb5 {[%clk 0:02:26.9]} 16. Nxd7 {[%clk 0:01:46.1]} 16... Qxd7 {[%clk
0:02:09.2]} 17. Bxc7 {[%clk 0:01:45.5]} 17... Qxc7 {[%clk 0:02:03.9]} 18. Nxb5
{[%clk 0:01:45.5]} 18... Qd7 {[%clk 0:02:04]} 19. Ra7 {[%clk 0:01:44.7]} 19...
Rb7 {[%clk 0:01:59.5]} 20. Rxb7 {[%clk 0:01:25]} 20... Qxb7 {[%clk 0:01:59]} 21.
Qf3 {[%clk 0:01:01.2]} 21... Ne8 {[%clk 0:01:51.4]} 22. b3 {[%clk 0:00:53.2]}
22... Nd6 {[%clk 0:01:47.2]} 23. Nxd6 {[%clk 0:00:48.6]} 23... exd6 {[%clk
0:01:48.1]} 24. Qe4 {[%clk 0:00:48.6]} 24... Qb4 {[%clk 0:01:43.1]} 25. Re2
{[%clk 0:00:43.5]} 25... Qc3 {[%clk 0:01:42.4]} 26. g3 {[%clk 0:00:43.3]} 26...
Be5 {[%clk 0:01:40.4]} 27. Kg2 {[%clk 0:00:39.7]} 27... Qa1 {[%clk 0:01:33.3]}
28. Re1 {[%clk 0:00:33.5]} 28... Qb2 {[%clk 0:01:32.6]} 29. Re2 {[%clk
0:00:32.6]} 29... f5 {[%clk 0:01:27.7]} 30. Qf3 {[%clk 0:00:31.8]} 30... f4
{[%clk 0:01:27.7]} 31. g4 {[%clk 0:00:32.1]} 31... Qc1 {[%clk 0:01:24.4]} 32.
Bd3 {[%clk 0:00:31.6]} 32... Ra8 {[%clk 0:01:13.3]} 33. Rxe5 {[%clk 0:00:31.5]}
33... Ra1 {[%clk 0:01:05.1]} 34. Re1 {[%clk 0:00:11.7]} 34... Qxe1 {[%clk
0:01:03.2]} 35. Qxf4 {[%clk 0:00:12.3]} 35... Qe7 {[%clk 0:00:34.6]} 36. Qe4
{[%clk 0:00:11.2]} 36... Qxe4+ {[%clk 0:00:27.6]} 37. Bxe4 {[%clk 0:00:12.1]}
37... g5 {[%clk 0:00:26.2]} 38. h4 {[%clk 0:00:08.8]} 38... h6 {[%clk 0:00:26]}
39. hxg5 {[%clk 0:00:07.7]} 39... hxg5 {[%clk 0:00:26.9]} 40. Kg3 {[%clk
0:00:08.3]} 40... Rf1 {[%clk 0:00:22.9]} 41. Kg2 {[%clk 0:00:08.4]} 41... Re1
{[%clk 0:00:22.1]} 42. Kf3 {[%clk 0:00:08.6]} 42... Kf7 {[%clk 0:00:20.8]} 43.
Bf5 {[%clk 0:00:08.7]} 43... Kf6 {[%clk 0:00:20.1]} 44. Kg2 {[%clk 0:00:03.7]}
44... Ke5 {[%clk 0:00:19.9]} 45. f3 {[%clk 0:00:04]} 45... Kxd5 {[%clk
0:00:16.4]} 46. Bd3 {[%clk 0:00:02.9]} 46... Ke5 {[%clk 0:00:14.7]} 47. Be4
{[%clk 0:00:03.3]} 47... Kf4 {[%clk 0:00:14.6]} 48. Kf2 {[%clk 0:00:03.2]} 48...
Rh1 {[%clk 0:00:14]} 49. Ke2 {[%clk 0:00:03.9]} 49... Rh8 {[%clk 0:00:11.3]} 50.
Kd3 {[%clk 0:00:03.7]} 50... Ke5 {[%clk 0:00:11.5]} 51. Kc4 {[%clk 0:00:04.1]}
51... Rb8 {[%clk 0:00:10.6]} 52. c3 {[%clk 0:00:04.6]} 52... Rb6 {[%clk
0:00:10.5]} 53. Ba8 {[%clk 0:00:02.8]} 53... Rb8 {[%clk 0:00:10.5]} 54. Be4
{[%clk 0:00:03.4]} 54... Rf8 {[%clk 0:00:10.7]} 55. Bc6 {[%clk 0:00:03.5]} 55...
Rf4+ {[%clk 0:00:10.1]} 56. Kd3 {[%clk 0:00:03.5]} 56... d5 {[%clk 0:00:09.7]}
57. Ke3 {[%clk 0:00:04.2]} 57... Rf6 {[%clk 0:00:08.8]} 58. Ba8 {[%clk
0:00:03.3]} 58... Rb6 {[%clk 0:00:09]} 59. c4 {[%clk 0:00:02.8]} 59... Rxb3+
{[%clk 0:00:08.5]} 60. Kd2 {[%clk 0:00:03.4]} 60... dxc4 {[%clk 0:00:08.5]} 61.
Be4 {[%clk 0:00:03.7]} 61... Kd4 {[%clk 0:00:08.8]} 62. Kc2 {[%clk 0:00:03.8]}
62... Re3 {[%clk 0:00:09]} 0-1